Cogmind - Beta 9.2 --- EXPLORER MODE // 2019.11.29 @ 16:18:14 Player: Passi965 Result: Destroyed by as-29264 with Assembled Heavy Rifle Performance ------------- Evolutions (0) 0 Regions Visited (0) 0 Robots Destroyed (1) 5 Value Destroyed (0) 0 Prototype IDs (0) 0 Alien Tech Used (0) 0 Bonus (0) 0 TOTAL SCORE: 5 Bonus ------- None Cogmind --------- Core Integrity 0/250 Matter 221/300 Energy 136/140 System Corruption 0% Temperature Cool (1) Movement Walking (150) Ox1 Location -11/Scrapyard Parts ------- > --- POWER (1) -------- Light Deuterium Engine > --- PROPULSION (2) --- Aluminum Leg > --- UTILITY (2) ------ Medium Storage Unit Propulsion Shielding > --- WEAPON (2) ------- (None) > --- INVENTORY (8) ---- Light Treads Light Treads Peak State ------------ > --- POWER ------------ Light Ion Engine > --- PROPULSION ------- Light Treads Light Treads > --- UTILITY ---------- Medium Storage Unit Targeting Computer > --- WEAPON ----------- Medium Laser Light Assault Rifle > --- INVENTORY -------- Propulsion Shielding Assault Rifle [Rating: 7] Favorites ----------- Power Light Ion Engine Engine Light Ion Engine Propulsion Light Treads Treads Light Treads Leg Aluminum Leg Utility Medium Storage Unit Storage Medium Storage Unit Processor Targeting Computer Protection Propulsion Shielding Weapon Medium Laser Energy Gun Medium Laser Ballistic Gun Light Assault Rifle Build | -11 ------- Run | Scr Slots Evolved . | . Power . | . Propulsion . | . Utility . | . Weapon . | . Parts Attached 13 | 13 Power 2 | 2 Engine 2 | 2 Core . | . Reactor . | . Propulsion 4 | 4 Treads 2 | 2 Leg 2 | 2 Wheel . | . Hover . | . Flight . | . Utility 3 | 3 Device . | . Storage 1 | 1 Processor 1 | 1 Hackware . | . Protection 1 | 1 Artifact . | . Weapon 4 | 4 Energy Gun 1 | 1 Energy Cannon . | . Ballistic Gun 3 | 3 Ballistic Cannon . | . Launcher . | . Special Weapon . | . Impact Weapon . | . Slashing Weapon . | . Piercing Weapon . | . Special Melee Weapon . | . Unidentified Prototypes . | . Parts Lost 6 | 6 Power 1 | 1 Propulsion 1 | 1 Utility 1 | 1 Weapon 3 | 3 Highest Loss Streak 6 | 6 Average Slot Usage (%) . | . Naked Turns . | . Heaviest Build 15 | 15 Greatest Support 40 | 40 Greatest Overweight (x) 1 | 1 Average Overweight (x) . | . Largest Inventory Capacity 8 | 8 Average Capacity 7 | 7 Most Carried 5 | 5 Average Carried 2 | 2 Final Capacity 8 | 8 Final Carried 2 | 2 Class Distribution -------------------- None Dominant Class ---------------- None Resources | -11 ----------- Run | Scr Matter Collected 224 | 224 Remotely . | . Salvage Created . | . Parts . | . Haulers Intercepted . | . Recyclers Shooed . | . Parts Field Recycled . | . Retrieved Matter . | . Parts Self-Destructed . | . Prevented . | . Kills | -11 ------- Run | Scr Combat Hostiles Destroyed 1 | 1 Melee 1 | 1 Classes Destroyed 1 | 1 Assembled 1 | 1 Best Kill Streak 1 | 1 Combat Bots Only 1 | 1 Max Kills in Single Turn 1 | 1 Gunslinging . | . Exploded . | . Melee 1 | 1 Uniques/NPCs Destroyed . | . Combat | -11 -------- Run | Scr Damage Taken 737 | 737 Core 252 | 252 Absorbed by Shields . | . Core Remaining (%) . | . Volleys Fired 7 | 7 Largest 2 | 2 Hottest 70 | 70 Shots Fired 10 | 10 Gun 10 | 10 Cannon . | . Launcher . | . Special . | . Kinetic 7 | 7 Thermal 3 | 3 Explosive . | . Electromagnetic . | . Robot Hit Streak 8 | 8 Robot Miss Streak 1 | 1 Penetration Max . | . Secondary Targets . | . Shots Hit Robots 9 | 9 Core Hits 6 | 6 Critical Hits . | . Critical Kills . | . Critical Parts Destroyed . | . Melee Attacks . | . Impact . | . Slashing . | . Piercing . | . Sneak Attacks . | . Combat Hostiles . | . Follow-up Attacks . | . Damage Inflicted 83 | 83 Guns 80 | 80 Cannons . | . Explosions . | . Melee . | . Ramming 3 | 3 Kinetic 42 | 42 Thermal 38 | 38 Explosive . | . Electromagnetic . | . Impact . | . Slashing . | . Piercing . | . Highest Corruption . | . Average Corruption . | . Corruption Purged . | . Overload Shots . | . Overflow Damage . | . Projectiles . | . Explosions . | . Melee . | . Knockbacks . | . Impact . | . Kinetic . | . Secondary . | . Self-Inflicted Damage 1 | 1 Shots . | . Rammed 1 | 1 Targets Rammed 2 | 2 Kicked 1 | 1 Crushed . | . Highest Temperature 40 | 40 Average Temperature 17 | 17 Received Heat Transfer . | . Siege Activations . | . Robots Corrupted . | . Combat Hostiles . | . Parts Fried . | . Impact Corruptions . | . Robots Melted . | . Combat Hostiles . | . Parts Melted . | . Heat Transferred 111 | 111 Parts Sabotaged . | . Parts Stolen . | . Parts Stripped . | . Power Chain Reactions . | . Missiles Intercepted . | . Alert | -11 ------- Run | Scr Peak Influence . | . Average Influence . | . Maximum Alert Level . | . Low Security (%) 100 | 100 Level 1 . | . Level 2 . | . Level 3 . | . Level 4 . | . Level 5 . | . High Security . | . Max Security . | . Squads Dispatched . | . Investigation . | . Extermination . | . Reinforcement . | . Assault . | . Garrison . | . Intercept . | . Construction Impeded . | . Haulers Reinforced . | . Stealth | -11 --------- Run | Scr Distress Signals . | . Communications Jammed . | . Distress Signals . | . Times Spotted 18 | 18 Peak Tracking Total 12 | 12 Tactical Retreats . | . Traps | -11 ------- Run | Scr Traps Triggered . | . Indirectly . | . Trap Hack Attempts . | . Triggered . | . Disarmed . | . Reprogrammed . | . Reused . | . Traps Extracted . | . Installed . | . Triggered . | . Machines | -11 ---------- Run | Scr Machines Disabled . | . Max in Single Turn . | . Machines Sabotaged . | . Garrisons Compromised . | . Overloaded Fab Kills . | . Fab Network Shutdowns . | . Hacking | -11 --------- Run | Scr Machines Accessed . | . Terminals . | . Fabricators . | . Repair Stations . | . Recycling Units . | . Scanalyzers . | . Garrison Access . | . Total Hacks . | . Successful . | . Failed . | . Catastrophic . | . Database Lockouts . | . Manual . | . Terminals . | . Fabricators . | . Repair Stations . | . Recycling Units . | . Scanalyzers . | . Garrison Access . | . Terminal Hacks . | . Fabricator Hacks . | . Repair Station Hacks . | . Recycling Unit Hacks . | . Scanalyzer . | . Garrison Access Hacks . | . Unauthorized Hacks . | . Terminals . | . Fabricators . | . Repair Stations . | . Recycling Units . | . Scanalyzers . | . Garrison Access . | . Data Cores Recovered . | . Used . | . Hacking Detections . | . Full Trace Events . | . Feedback Events . | . Feedback Blocked . | . Robot Schematics Acquired . | . Robots Built . | . Matter . | . Time . | . Total Robot Build Rating . | . Part Schematics Acquired . | . Parts Built . | . Matter . | . Time . | . Total Part Build Rating . | . Parts Repaired . | . Time . | . Parts Recycled . | . Recycled Matter . | . Retrieved Matter . | . Retrieved Components . | . Parts Scanalyzed . | . Part Schematics Acquired . | . Parts Damaged . | . Bothacking | -11 ------------ Run | Scr Used RIF Installer . | . Robots Hacked . | . Non-combat . | . Combat . | . Robot Hacks Applied . | . Relay Couplers Released . | . Robots Rewired . | . Allies Hacked . | . Hacks Repelled . | . Allies | -11 -------- Run | Scr Total Allies . | . Largest Group . | . Highest-Rated Group . | . Highest-Rated Ally . | . Total Orders . | . Ally Attacks . | . Total Damage . | . Kills . | . Allies Corrupted . | . Allies Melted . | . Intel | -11 ------- Run | Scr Robot Analysis Total . | . Derelict Logs Recovered . | . Drone Launches . | . Drone Recoveries . | . Exploration | -11 ------------- Run | Scr Turns Passed 1891 | 1891 Spaces Moved 551 | 551 Core 9 | 9 Treads 253 | 253 Legs 289 | 289 Wheels . | . Hover . | . Flight . | . Fastest Speed 50 | 50 Average Speed 137 | 137 Slowest Speed 160 | 160 Overloaded Moves . | . Propulsion Burnouts . | . Robots Hopped . | . Cave-ins Triggered . | . Exploration Rate (%) 66 | 66 Regions Visited . Branch Regions . Pre-discovered Areas . | . Known Exits Taken . | . Unknown Exits Taken . | . Scrap Searched . | . Spaces Dug . | . Terrain Destroyed . | . Melee . | . Projectile . | . AOE . | . Actions | -11 --------- Run | Scr Total 1675 | 1675 Wait 1092 | 1092 Move 551 | 551 Hop . | . Pick Up 10 | 10 Fast Attach 2 | 2 Attach 8 | 8 Detach . | . Swap 3 | 3 Drop . | . Fire 7 | 7 Melee . | . Ram . | . Kick 2 | 2 Crush . | . Escape Stasis . | . Rewire . | . Trap . | . Miscellaneous . | . Route ------- -11/Scrapyard (discovered 1 exit: *Mat) History --------- Turn | Location | Event 20 | -11/Scrapyard | Identified exit to Materials 20 | -11/Scrapyard | Discovered exit to Materials (range 15) 1842 | -11/Scrapyard | Assembled infested the area 1872 | -11/Scrapyard | Core integrity fell below 50% 1886 | -11/Scrapyard | Core integrity fell below 20% 1892 | -11/Scrapyard | Destroyed by as-29264 with Assembled Heavy Rifle Last Messages --------------- Destroyed Asb. Hover Unit. as-59553 destroyed. as-34948 destroyed. D-53 Grenadier destroyed. K-01 Serf collects debris. The unstable cave ceiling collapses. Critical hit. Lgt. Assault Rifle destroyed. Kicked as-71771 out of the way. Slammed into as-71771. as-71771 destroyed. [Achievement: Fist Fight] K-01 Serf collects debris. Acquired 24 matter. The unstable cave ceiling collapses. Acquired Lgt. Deuterium Engine. The unstable cave ceiling collapses. K-01 Serf destroyed. The unstable cave ceiling collapses. Aluminum Leg destroyed. Map ----- +----------------------------------------------------+ | ????????????????# # # #???????????????? | | ????????????????# #???????????????? | | ????????????????# # # #???????????????? | | ????????????????######## # ####???????????????? | | ???????????????????????# #####??????????????????? | | ???????????????????????# #??????????????????????? | | ???????????????????????# #??????????????????????? | | ???????????????????????# #??????????????????????? | | ######????????########## #?############?????????? | | ####?????# # # ## ##????????? | | #?????# | #????????? | | #?????# %* ????????? | | #?????# #????????? | | #?????# # ???????????? | | #?????# # a #???????????????? | | #?????# ##a # #######?????????? | | #?????# a % ???????? | | #?????# ??????? | | #### ############### # ######## ???????? | | ### #????????????????? | | #??????????????????? | | ##### ############# ##??????????????????? | | ##?# #???##### # % #???????????????????? | | ???# #???# a ##########????????????? | | ???# #???# # # #????????????? | | ???# #???# # @# #????????????? | | ???# #???# #=%# #????????????? | | ???# #???# # =# #????????????? | | ???########???# # # #????????????? | | ??????????????# t%t #????????????? | | ??????????????# # # #????????????? | | ??????????????# # # #????????????? | | ??????????????########## ######### #????????????? | | ???????##########???# #????# #?#########??? | | ???????# #???# #????# # #??? | | ???????# #???# ###### # #??? | | ######## ##### #??? | | # #??? | | !* ##### # #??? | | #### ### ! ##### < #???# # #??? | | ???###?# #???# #???# # #??? | | ???????# #???##########???# #??? | | ???????#### ####????????????????# ############## | | ??????????# #???????????????????# | | ??????????# #???????????????????# | | ??????????# #?????######????????################# | | ??????????# ####### #????????????????????????? | | ??????????# #????????????????????????? | | #########?# #????????????????????????? | | ?# ####### #????????????????????????? | +----------------------------------------------------+ Best States ------------- Heat Dissipation 25 Energy Generation 14 Energy Capacity 140 Matter Stores 230 Matter Capacity 300 Sight Range 16 Terrain Scan Density 10 Resistance: KI 35 Resistance: TH 35 Resistance: EX 35 Resistance: EM 35 Resistance: I 35 Resistance: S 35 Resistance: P 35 Propulsion Shielding 33 Evasion (%) 50 Targeting Accuracy 5 Recoil Reduction 2 Item Schematics ----------------- None Robot Schematics ------------------ None Fabricated ------------ Nothing Alien Tech Used ----------------- None Achievements -------------- Curiosity Killed The Cat Fist Fight Challenges ------------ None Game ------ Seed TargetingFlightAutohacker Manual? 0 Play Time 00:11:42 Cumulative 4.1 hours Start 2019.11.29 @ 16:12:18 End 2019.11.29 @ 16:18:14 Sessions 0 Manual Loads 0 Difficulty Explorer Special Mode None Game No. 4 Rogue 2 Adventurer 0 Explorer 2 Win Type - Total 0 Types 0/0/0/0/0/0/0 Lore% 2 Gallery% 11 Achievement% 10 Wizard Run 0 Options --------- ASCII 0 Keyboard 0 Movement Mouse Keybinds 0 Fullscreen 1 Font 18/SmallcapsGlow Map View 76x50 Tactical HUD 0 Map Filters NONE Filters NONE Steam 1 RUN: 24efdf34-b0dd-4f23-87b1-020012d1e0ea